fUST/lending_fUST_20250825
["ID","MTS","AMOUNT","RATE_DAILY","PERIOD"]
[381243986,1756108234522,-652.76729633,0.00033,2]
[381243988,1756108234532,-151.0,0.00033,7]
[381243990,1756108234543,-461.032349,0.00033,7]
[381243992,1756108234552,-461.032349,0.00033,7]
[381243993,1756108234562,-461.032349,0.00033,7]
[381243994,1756108234572,-461.032349,0.00033,7]
[381243995,1756108234583,-189.126067,0.00033,7]
[381243996,1756108234593,-189.126067,0.00033,7]
[381243998,1756108234603,-372.602325,0.00033,7]
[381243999,1756108234613,-189.126067,0.00033,7]
[381244000,1756108234623,-372.602325,0.00033,7]
[381244001,1756108234633,-189.126067,0.00033,7]
[381244002,1756108234643,-372.602325,0.00033,7]
[381244003,1756108234652,-372.602325,0.00033,7]
[381244004,1756108234663,-151.0,0.00033,7]
[381244005,1756108234673,-151.0,0.00033,7]
[381244006,1756108234684,-151.501775,0.00033,7]
[381244007,1756108234696,-151.0,0.00033,7]
[381244008,1756108234707,-151.0,0.00033,7]
[381244009,1756108234717,-151.0,0.00033,7]
[381244010,1756108234727,-151.0,0.00033,7]
[381244011,1756108234738,-151.0,0.00033,7]
[381244012,1756108234747,-151.0,0.00033,7]
[381244013,1756108234757,-169.218035,0.00033165,2]
[381244014,1756108234769,-152.71019,0.00033962,7]
[381244015,1756108234779,-151.0,0.00033962,7]
[381244016,1756108234793,-151.0,0.00033962,7]
[381244017,1756108234802,-151.0,0.00033962,7]
[381244018,1756108234812,-151.0,0.00033962,7]
[381244019,1756108234822,-151.0,0.00033962,7]
[381244020,1756108234832,-151.0,0.00033962,7]
[381244021,1756108234842,-155.070347,0.00033962,7]
[381244022,1756108234852,-155.070347,0.00033962,7]
[381244023,1756108234862,-155.070347,0.00033962,7]
[381244024,1756108234872,-155.070347,0.00033962,7]
[381244025,1756108234882,-151.0,0.00033962,7]
[381244026,1756108234892,-241.590912,0.00033962,7]
[381244027,1756108234902,-241.590912,0.00033962,7]
[381244028,1756108234912,-241.590912,0.00033962,7]
[381244029,1756108234921,-151.0,0.00033962,7]
[381244030,1756108234932,-241.590912,0.00033962,7]
[381244031,1756108234941,-151.0,0.00033962,7]
[381244032,1756108234951,-151.0,0.00033962,7]
[381244033,1756108234961,-151.0,0.00033962,7]
[381244034,1756108234971,-152.602771,0.00033962,7]
[381244035,1756108234980,-151.0,0.00033962,7]
[381244036,1756108234990,-151.0,0.00033962,7]
[381244037,1756108234999,-151.0,0.00033962,7]
[381244038,1756108235009,-151.0,0.00033962,7]
[381244039,1756108235018,-151.0,0.00033962,7]
[381244040,1756108235028,-566.09721444,0.00034249,2]
[381244041,1756108235040,-1341.45,0.0003452,120]
[381244042,1756108235050,-174.20059986,0.00034846,30]
[381244043,1756108235060,-154.0,0.00035,120]
[381244044,1756108235069,-9477.61,0.00035,14]
[381244045,1756108235079,-2412.2,0.00035,7]
[381244046,1756108235089,-4994.24,0.00035,14]
[381244047,1756108235098,-150.125478,0.00035055,20]
[381244048,1756108235108,-160.0,0.00035335,3]
[381244049,1756108235118,-544.24839071,0.00035335,3]
[381244050,1756108235128,-34687.2294397,0.00035335,3]
[381244051,1756108235137,-1741.14962337,0.00035335,3]
[381244052,1756108235146,-151.0,0.00035345,7]
[381244053,1756108235156,-151.0,0.00035345,7]
[381244054,1756108235165,-251.391073,0.00035345,7]
[381244055,1756108235175,-151.0,0.00035345,7]
[381244056,1756108235185,-151.0,0.00035345,7]
[381244057,1756108235195,-151.0,0.00035345,7]
[381244058,1756108235204,-151.0,0.00035345,7]
[381244059,1756108235213,-151.0,0.00035345,7]
[381244060,1756108235223,-151.0,0.00035345,7]
[381244061,1756108235233,-151.0,0.00035345,7]
[381244062,1756108235243,-151.0,0.00035345,7]
[381244063,1756108235252,-151.0,0.00035345,7]
[381244064,1756108235262,-151.0,0.00035345,7]
[381244065,1756108235272,-151.0,0.00035345,7]
[381244066,1756108235282,-151.0,0.00035345,7]
[381244067,1756108235294,-151.0,0.00035345,7]
[381244068,1756108235303,-151.0,0.00035345,7]
[381244069,1756108235313,-151.0,0.00035345,7]
[381244070,1756108235322,-151.0,0.00035345,7]
[381244071,1756108235333,-151.0,0.00035345,7]
[381244072,1756108235343,-151.0,0.00035345,7]
[381244073,1756108235352,-152.008388,0.00035345,7]
[381244074,1756108235362,-151.0,0.00035345,7]
[381244075,1756108235371,-151.0,0.00035345,7]
[381244076,1756108235380,-151.0,0.00035345,7]
[381244077,1756108235389,-151.0,0.00035345,7]
[381244078,1756108235398,-151.0,0.00035345,7]
[381244079,1756108235408,-151.0,0.00035345,7]
[381244080,1756108235418,-151.0,0.00035345,7]
[381244081,1756108235428,-264.546196,0.00035345,7]
[381244082,1756108235437,-151.0,0.00035345,7]
[381244083,1756108235447,-151.0,0.00035345,7]
[381244084,1756108235457,-151.0,0.00035345,7]
[381244085,1756108235466,-151.0,0.00035345,7]
[381244086,1756108235475,-151.0,0.00035345,7]
[381244087,1756108235484,-151.0,0.00035345,7]
[381244088,1756108235494,-297.919676,0.00035345,7]
[381244089,1756108235503,-297.919676,0.00035345,7]
[381244090,1756108235512,-297.919676,0.00035345,7]
[381244091,1756108235522,-297.919676,0.00035345,7]
[381244092,1756108235531,-151.0,0.00035345,7]
[381244093,1756108235542,-151.0,0.00035345,7]
[381244094,1756108235551,-151.0,0.00035345,7]
[381244095,1756108235560,-151.0,0.00035345,7]
[381244096,1756108235570,-151.0,0.00035345,7]
[381244097,1756108235579,-151.0,0.00035345,7]
[381244098,1756108235588,-151.0,0.00035345,7]
[381244099,1756108235598,-151.0,0.00035345,7]
[381244100,1756108235607,-151.0,0.00035345,7]
[381244101,1756108235617,-151.0,0.00035345,7]
[381244102,1756108235627,-151.0,0.00035345,7]
[381244103,1756108235636,-151.0,0.00035345,7]
[381244104,1756108235646,-151.0,0.00035345,7]
[381244105,1756108235655,-155.070347,0.00035345,7]
[381244106,1756108235665,-155.070347,0.00035345,7]
[381244107,1756108235674,-155.070347,0.00035345,7]
[381244108,1756108235683,-155.070347,0.00035345,7]
[381244109,1756108235697,-151.0,0.00035345,7]
[381244110,1756108235707,-241.590912,0.00035345,7]
[381244111,1756108235717,-241.590912,0.00035345,7]
[381244112,1756108235726,-241.590912,0.00035345,7]
[381244113,1756108235737,-151.0,0.00035345,7]
[381244114,1756108235747,-241.590912,0.00035345,7]
[381244115,1756108235756,-151.0,0.00035345,7]
[381244116,1756108235766,-151.0,0.00035345,7]
[381244117,1756108235776,-151.0,0.00035345,7]
[381244118,1756108235787,-151.0,0.00035345,7]
[381244119,1756108235797,-151.0,0.00035345,7]
[381244120,1756108235807,-151.0,0.00035345,7]
[381244121,1756108235816,-151.0,0.00035345,7]
[381244122,1756108235825,-151.0,0.00035345,7]
[381244123,1756108235835,-151.0,0.00035345,7]
[381244124,1756108235846,-151.0,0.00035345,7]
[381244125,1756108235856,-151.0,0.00035345,7]
[381244126,1756108235865,-166.606472,0.00035345,7]
[381244127,1756108235875,-151.0,0.00035345,7]
[381244128,1756108235884,-166.606472,0.00035345,7]
[381244129,1756108235894,-166.606472,0.00035345,7]
[381244130,1756108235903,-166.606472,0.00035345,7]
[381244131,1756108235913,-151.0,0.00035345,7]
[381244132,1756108235923,-151.0,0.00035345,7]
[381244133,1756108235932,-461.032349,0.00035345,7]
[381244134,1756108235942,-461.032349,0.00035345,7]
[381244135,1756108235953,-461.032349,0.00035345,7]
[381244136,1756108235962,-461.032349,0.00035345,7]
[381244137,1756108235972,-189.126067,0.00035345,7]
[381244138,1756108235982,-189.126067,0.00035345,7]
[381244139,1756108235992,-372.602325,0.00035345,7]
[381244140,1756108236002,-189.126067,0.00035345,7]
[381244141,1756108236013,-372.602325,0.00035345,7]
[381244142,1756108236022,-189.126067,0.00035345,7]
[381244143,1756108236032,-372.602325,0.00035345,7]
[381244144,1756108236043,-372.602325,0.00035345,7]
[381244145,1756108236052,-151.0,0.00035345,7]
[381244146,1756108236062,-151.0,0.00035345,7]
[381244147,1756108236073,-151.0,0.00035345,7]
[381244148,1756108236082,-151.0,0.00035345,7]
[381244149,1756108236092,-151.0,0.00035345,7]
[381244150,1756108236102,-151.0,0.00035345,7]
[381244151,1756108236112,-151.0,0.00035345,7]
[381244152,1756108236122,-151.0,0.00035345,7]
[381244153,1756108236132,-151.0,0.00035345,7]
[381244154,1756108236142,-165.290678,0.00035345,7]
[381244155,1756108236151,-151.0,0.00035345,7]
[381244156,1756108236161,-213.833915,0.00035345,7]
[381244157,1756108236171,-163.26655,0.00035345,7]
[381244158,1756108236182,-163.26655,0.00035345,7]
[381244159,1756108236192,-163.26655,0.00035345,7]
[381244160,1756108236202,-163.26655,0.00035345,7]
[381244161,1756108236212,-151.0,0.00035345,7]
[381244162,1756108236222,-151.0,0.00035345,7]
[381244163,1756108236232,-151.0,0.00035345,7]
[381244164,1756108236242,-237.581531,0.00035345,7]
[381244165,1756108236252,-237.581531,0.00035345,7]
[381244166,1756108236262,-237.581531,0.00035345,7]
[381244167,1756108236272,-237.581531,0.00035345,7]
[381244168,1756108236282,-151.0,0.00035345,7]
[381244169,1756108236292,-159.620719,0.00035345,7]
[381244170,1756108236302,-151.0,0.00035345,7]
[381244171,1756108236312,-159.620719,0.00035345,7]
[381244172,1756108236322,-263.089244,0.00035345,7]
[381244173,1756108236332,-159.620719,0.00035345,7]
[381244174,1756108236342,-159.620719,0.00035345,7]
[381244175,1756108236352,-151.0,0.00035345,7]
[381244176,1756108236361,-372.777061,0.00035345,7]
[381244177,1756108236371,-151.0,0.00035345,7]
[381244178,1756108236381,-372.777061,0.00035345,7]
[381244179,1756108236392,-69374.4588793,0.00035345,3]
[381244180,1756108236402,-3482.29924674,0.00035345,3]
[381244181,1756108236412,-151.0,0.00035355,7]
[381244182,1756108236421,-151.0,0.00035355,7]
[381244183,1756108236431,-93738.8688034,0.00035355,2]
[381244184,1756108236441,-352.9044016,0.00035355,2]
[381244185,1756108236451,-300.0,0.00035616,120]
[381244186,1756108236460,-4163.52532447,0.00035835,2]
[381244187,1756108236471,-151.0,0.00035853,30]
[381244188,1756108236480,-151.0,0.00035853,30]
[381244189,1756108236490,-282.813,0.00035853,30]
[381244190,1756108236500,-152.336595,0.00035853,30]
[381244191,1756108236510,-151.0,0.00035853,30]
[381244192,1756108236519,-151.0,0.00035853,30]
[381244193,1756108236529,-184.862521,0.00035853,30]
[381244194,1756108236540,-201.438149,0.00035853,30]
[381244195,1756108236550,-151.0,0.00035853,30]
[381244196,1756108236559,-151.0,0.00035853,30]
[381244197,1756108236569,-155.070347,0.00035853,30]
[381244198,1756108236579,-155.070347,0.00035853,30]
[381244199,1756108236589,-1000.0,0.00035853,2]
[381244200,1756108236599,-1000.0,0.00035853,2]
[381244201,1756108236610,-1000.0,0.00035853,2]
[381244202,1756108236621,-155.070347,0.00035853,30]
[381244203,1756108236631,-1000.0,0.00035853,2]
[381244204,1756108236641,-1000.0,0.00035853,2]
[381244205,1756108236831,-1000.0,0.00035853,2]
[381244206,1756108236848,-1000.0,0.00035853,2]
[381244207,1756108236859,-1000.0,0.00035853,2]
[381244208,1756108236869,-155.070347,0.00035853,30]
[381244209,1756108236879,-1000.0,0.00035853,2]
[381244210,1756108236888,-1000.0,0.00035853,2]
[381244211,1756108236898,-1000.0,0.00035853,2]
[381244212,1756108236907,-1000.0,0.00035853,2]
[381244213,1756108236917,-1000.0,0.00035853,2]
[381244214,1756108236927,-1000.0,0.00035853,2]
[381244215,1756108236937,-936.048982,0.00035853,2]
[381244216,1756108236947,-151.0,0.00035853,30]
[381244217,1756108236956,-241.590912,0.00035853,30]
[381244218,1756108236965,-241.590912,0.00035853,30]
[381244219,1756108236975,-241.590912,0.00035853,30]
[381244220,1756108236984,-151.0,0.00035853,30]
[381244221,1756108236994,-241.590912,0.00035853,30]
[381244222,1756108237003,-151.0,0.00035853,30]
[381244223,1756108237013,-151.0,0.00035853,30]
[381244224,1756108237022,-151.0,0.00035853,30]
[381244225,1756108237032,-151.0,0.00035853,30]
[381244226,1756108237044,-151.0,0.00035853,30]
[381244227,1756108237054,-151.0,0.00035853,30]
[381244228,1756108237063,-151.0,0.00035853,30]
[381244229,1756108237073,-151.0,0.00035853,30]
[381244230,1756108237082,-151.0,0.00035853,30]
[381244231,1756108237092,-153.609256,0.00035853,30]
[381244232,1756108237101,-166.606472,0.00035853,30]
[381244233,1756108237111,-233.605218,0.00035853,30]
[381244234,1756108237120,-166.606472,0.00035853,30]
[381244235,1756108237130,-166.606472,0.00035853,30]
[381244236,1756108237139,-166.606472,0.00035853,30]
[381244237,1756108237148,-151.0,0.00035853,30]
[381244238,1756108237157,-151.0,0.00035853,30]
[381244239,1756108237167,-461.032349,0.00035853,30]
[381244240,1756108237177,-461.032349,0.00035853,30]
[381244241,1756108237187,-461.032349,0.00035853,30]
[381244242,1756108237197,-461.032349,0.00035853,30]
[381244243,1756108237207,-189.126067,0.00035853,30]
[381244244,1756108237216,-189.126067,0.00035853,30]
[381244245,1756108237226,-372.602325,0.00035853,30]
[381244246,1756108237236,-189.126067,0.00035853,30]
[381244247,1756108237246,-372.602325,0.00035853,30]
[381244248,1756108237256,-189.126067,0.00035853,30]
[381244249,1756108237265,-372.602325,0.00035853,30]
[381244250,1756108237275,-372.602325,0.00035853,30]
[381244251,1756108237285,-151.0,0.00035853,30]
[381244252,1756108237295,-151.0,0.00035853,30]
[381244253,1756108237304,-151.0,0.00035853,30]
[381244254,1756108237314,-151.0,0.00035853,30]
[381244255,1756108237323,-151.0,0.00035853,30]
[381244256,1756108237333,-151.0,0.00035853,30]
[381244257,1756108237343,-151.0,0.00035853,30]
[381244258,1756108237353,-151.0,0.00035853,30]
[381244259,1756108237362,-151.0,0.00035853,30]
[381244260,1756108237372,-151.0,0.00035853,30]
[381244261,1756108237382,-163.26655,0.00035853,30]
[381244262,1756108237392,-163.26655,0.00035853,30]
[381244263,1756108237401,-163.26655,0.00035853,30]
[381244264,1756108237411,-163.26655,0.00035853,30]
[381244265,1756108237420,-152.547188,0.00035853,30]
[381244266,1756108237430,-151.0,0.00035853,30]
[381244267,1756108237439,-151.0,0.00035853,30]
[381244268,1756108237449,-237.581531,0.00035853,30]
[381244269,1756108237459,-237.581531,0.00035853,30]
[381244270,1756108237469,-237.581531,0.00035853,30]
[381244271,1756108237479,-237.581531,0.00035853,30]
[381244272,1756108237488,-151.0,0.00035853,30]
[381244273,1756108237497,-159.620719,0.00035853,30]
[381244274,1756108237507,-151.0,0.00035853,15]
[381244275,1756108237516,-159.620719,0.00035853,30]
[381244276,1756108237526,-159.620719,0.00035853,30]
[381244277,1756108237537,-159.620719,0.00035853,30]
[381244278,1756108237546,-151.0,0.00035853,30]
[381244279,1756108237556,-372.777061,0.00035853,30]
[381244280,1756108237565,-151.0,0.00035853,30]
[381244281,1756108237575,-500.0,0.00035888,5]
[381244282,1756108237584,-500.02625902,0.00035888,2]
[381244283,1756108237594,-500.0,0.00035888,5]
[381244284,1756108237604,-34687.2294397,0.00035956,3]
[381244285,1756108237613,-1741.14962337,0.00035956,3]
[381244286,1756108237623,-151.0,0.00035966,2]
[381244287,1756108237632,-151.0,0.00035966,2]
[381244288,1756108237642,-163.79948588,0.00035966,2]
[381244289,1756108237651,-500.0,0.00035966,2]
[381244290,1756108237660,-151.0,0.00035966,2]
[381244291,1756108237674,-500.0,0.00035966,2]
[381244292,1756108237684,-151.0,0.00035966,2]
[381244293,1756108237701,-151.0,0.00035966,2]
[381244294,1756108237712,-500.0,0.00035966,2]
[381244295,1756108237721,-151.0,0.00035966,2]
[381244296,1756108237731,-151.0,0.00035966,2]
[381244297,1756108237741,-151.0,0.00035966,2]
[381244298,1756108237751,-500.0,0.00035966,2]
[381244299,1756108237761,-151.0,0.00035966,2]
[381244300,1756108237771,-151.0,0.00035966,2]
[381244301,1756108237781,-151.0,0.00035966,2]
[381244302,1756108237794,-500.0,0.00035966,2]
[381244303,1756108237803,-300.0,0.00035966,2]
[381244304,1756108237814,-151.0,0.00035966,2]
[381244305,1756108237823,-151.0,0.00035966,2]
[381244306,1756108237833,-500.0,0.00035966,2]
[381244307,1756108237843,-300.0,0.00035966,2]
[381244308,1756108237852,-151.0,0.00035966,2]
[381244309,1756108237862,-500.0,0.00035966,2]
[381244310,1756108237871,-151.0,0.00035966,2]
[381244311,1756108237881,-151.0,0.00035966,2]
[381244312,1756108237891,-151.0,0.00035966,2]
[381244313,1756108237901,-300.0,0.00035966,2]
[381244314,1756108237911,-500.0,0.00035966,2]
[381244315,1756108237920,-151.0,0.00035966,2]
[381244316,1756108237930,-151.0,0.00035966,2]
[381244317,1756108237940,-500.0,0.00035966,2]
[381244318,1756108237949,-300.0,0.00035966,2]
[381244319,1756108237959,-151.0,0.00035966,2]
[381244320,1756108237968,-500.0,0.00035966,2]
[381244321,1756108237978,-151.0,0.00035966,2]
[381244322,1756108237987,-209.40437684,0.00035966,2]
[381244323,1756108237997,-300.0,0.00035966,2]
[381244324,1756108238006,-151.0,0.00035966,2]
[381244325,1756108238016,-500.0,0.00035966,2]
[381244327,1756108238026,-238.25945961,0.00035966,2]
[381244328,1756108238036,-300.0,0.00035966,2]
[381244329,1756108238045,-300.0,0.00035966,2]
[381244330,1756108238054,-300.0,0.00035966,2]
[381244332,1756108238064,-300.0,0.00035966,2]
[381244333,1756108238073,-300.0,0.00035966,2]
[381244334,1756108238083,-300.0,0.00035966,2]
[381244335,1756108238093,-152.175132,0.00035966,14]
[381244336,1756108238103,-154.255539,0.00035966,30]
[381244337,1756108238113,-151.0,0.00035966,30]
[381244338,1756108238122,-151.0,0.00035966,30]
[381244339,1756108238133,-164.0,0.00036,30]
[381244340,1756108238143,-566.09721444,0.00036037,2]
[381244341,1756108238153,-151.0,0.00036065,30]
[381244342,1756108238162,-151.0,0.00036065,30]
[381244343,1756108238172,-151.0,0.00036164,30]
[381244344,1756108238181,-153.543654,0.00036164,30]
[381244345,1756108238192,-152.708308,0.00036164,30]
[381244346,1756108238201,-175.306009,0.00036164,30]
[381244347,1756108238210,-1341.45,0.00036164,120]
[381244348,1756108238220,-150.125478,0.0003625,2]
[381244350,1756108238230,-1000.0,0.00036435,5]
[381244352,1756108238239,-497.62415652,0.00036435,5]
[381244353,1756108238249,-150.125478,0.000365,2]
[381244355,1756108238258,-587.291871,0.00036712,30]
[381244357,1756108238268,-161.0488651,0.00036712,30]
[381244359,1756108238278,-161.0488651,0.00036712,30]
[381244361,1756108238289,-161.0488651,0.00036712,30]
[381244363,1756108238299,-161.0488651,0.00036712,30]
[381244365,1756108238308,-581.6464433,0.00036712,30]
[381244366,1756108238318,-150.125478,0.0003675,2]
[381244367,1756108238327,-219.79987531,0.00036896,30]
[381244368,1756108238338,-174.20059986,0.00036896,30]
[381244369,1756108238348,-521.33867089,0.00036983,5]
[381244370,1756108238357,-153.0,0.00036986,30]
[381244371,1756108238366,-294.2662707,0.00036986,30]
[381244372,1756108238376,-581.6464433,0.00036986,30]
[381244373,1756108238386,-581.6464433,0.00036986,30]
[381244374,1756108238396,-294.2662707,0.00036986,30]
[381244375,1756108238406,-161.0488651,0.00036986,30]
[381244376,1756108238415,-581.6464433,0.00036986,30]
[381244377,1756108238425,-161.0488651,0.00036986,30]
[381244378,1756108238434,-581.6464433,0.00036986,30]
[381244379,1756108238443,-161.0488651,0.00036986,30]
[381244381,1756108238453,-153.0,0.00036986,30]
[381244382,1756108238463,-153.0,0.00036986,30]
[381244384,1756108238472,-153.0,0.00036986,30]
[381244386,1756108238481,-581.6464433,0.00036986,30]
[381244388,1756108238491,-99999.999999,0.0003699,120]
[381244391,1756108238501,-151.0,0.00037,14]
[381244393,1756108238511,-150.125478,0.00037,2]
[381244395,1756108238520,-164.828353,0.00037,30]
[381244397,1756108238530,-151.0,0.00037,30]
[381244400,1756108238542,-151.0,0.00037,30]
[381244402,1756108238551,-297.919676,0.00037,30]
[381244403,1756108238561,-297.919676,0.00037,30]
[381244406,1756108238570,-297.919676,0.00037,30]
[381244408,1756108238580,-297.919676,0.00037,30]
[381244410,1756108238590,-157.41577,0.00037,30]
[381244412,1756108238599,-151.0,0.00037,30]
[381244414,1756108238609,-151.0,0.00037,30]
[381244416,1756108238619,-980.51873679,0.00037195,120]
[381244418,1756108238628,-2412.2,0.000372,7]
[381244420,1756108238639,-281.001005,0.000372,30]
[381244422,1756108238648,-156.304368,0.000372,30]
[381244424,1756108238658,-151.0,0.000372,30]
[381244426,1756108238667,-151.0,0.000372,30]
[381244428,1756108238677,-151.0,0.000372,30]
[381244430,1756108238687,-151.0,0.000372,30]
[381244432,1756108238700,-151.0,0.000372,30]
[381244434,1756108238710,-151.0,0.000372,30]
[381244437,1756108238719,-151.0,0.000372,30]
[381244439,1756108238728,-151.0,0.000372,30]
[381244441,1756108238738,-217.12848614,0.00037242,2]
[381244443,1756108238748,-387.2256533,0.0003726,30]
[381244445,1756108238757,-387.2256533,0.0003726,30]
[381244447,1756108238767,-387.2256533,0.0003726,30]
[381244449,1756108238776,-4994.24,0.000373,14]
[381244451,1756108238789,-151.0,0.000373,30]
[381244453,1756108238798,-151.0,0.000373,30]
[381244455,1756108238807,-151.0,0.000373,30]
[381244457,1756108238817,-151.0,0.000373,30]
[381244459,1756108238827,-151.0,0.000373,30]
[381244461,1756108238836,-256.892,0.000373,30]
[381244463,1756108238845,-151.0,0.000373,30]
[381244465,1756108238856,-151.0,0.000373,30]
[381244467,1756108238866,-151.0,0.000373,30]
[381244469,1756108238875,-217.15233878,0.00037335,2]
[381244471,1756108238885,-564.1103267,0.00037346,2]
[381244473,1756108238895,-1000.0,0.00037367,15]
[381244475,1756108238904,-161.0488651,0.00037534,30]
[381244477,1756108238914,-161.0488651,0.00037534,30]
[381244479,1756108238923,-321.8604365,0.00037534,30]
[381244481,1756108238933,-161.0488651,0.00037534,30]
[381244483,1756108238942,-161.0488651,0.00037534,30]
[381244485,1756108238951,-322.0977302,0.00037534,30]
[381244488,1756108238961,-322.0977302,0.00037534,30]
[381244490,1756108238971,-34687.2294397,0.0003759,3]
[381244492,1756108238980,-1741.14962337,0.0003759,3]
[381244494,1756108238990,-9477.61,0.000376,14]
[381244496,1756108238999,-1341.45,0.00037808,120]
[381244498,1756108239008,-566.09721444,0.00037824,2]
[381244500,1756108239017,-168.0,0.00037964,2]
[381244502,1756108239027,-158.0,0.00038,30]
[381244504,1756108239036,-158.0,0.00038,35]
[381244506,1756108239047,-158.0,0.00038,40]
[381244508,1756108239057,-158.0,0.00038,45]
[381244510,1756108239067,-151.0,0.00038219,15]
[381244512,1756108239076,-151.0,0.00038219,30]
[381244514,1756108239085,-372.777061,0.00038219,30]
[381244516,1756108239095,-151.0,0.00038219,30]
[381244518,1756108239104,-387.2256533,0.00038219,30]
[381244520,1756108239114,-387.2256533,0.00038219,30]
[381244522,1756108239124,-387.2256533,0.00038219,30]
[381244524,1756108239134,-387.2256533,0.00038219,30]
[381244526,1756108239143,-387.2256533,0.00038219,30]
[381244528,1756108239152,-387.2256533,0.00038219,30]
[381244530,1756108239162,-1000.0,0.00038326,15]
[381244532,1756108239171,-5525.85,0.00038356,14]
[381244534,1756108239181,-380.72074823,0.00038356,120]
[381244536,1756108239190,-394.6091605,0.00038493,30]
[381244538,1756108239199,-461.032349,0.00038586,30]
[381244540,1756108239209,-461.032349,0.00038586,30]
[381244542,1756108239218,-461.032349,0.00038586,30]
[381244544,1756108239227,-461.032349,0.00038586,30]
[381244546,1756108239237,-189.126067,0.00038586,30]
[381244548,1756108239247,-189.126067,0.00038586,30]
[381244556,1756108239311,-372.602325,0.00038586,30]
[381244558,1756108239320,-189.126067,0.00038586,30]
[381244560,1756108239330,-372.602325,0.00038586,30]
[381244562,1756108239339,-189.126067,0.00038586,30]
[381244564,1756108239348,-372.602325,0.00038586,30]
[381244566,1756108239358,-372.602325,0.00038586,30]
[381244568,1756108239367,-151.0,0.00038586,30]
[381244570,1756108239376,-151.0,0.00038586,30]
[381244572,1756108239385,-151.0,0.00038586,30]
[381244574,1756108239394,-163.284195,0.00038586,30]
[381244576,1756108239403,-151.0,0.00038586,30]
[381244578,1756108239412,-162.273453,0.00038586,30]
[381244580,1756108239422,-151.0,0.00038586,30]
[381244582,1756108239431,-151.0,0.0003862,30]
[381244584,1756108239440,-151.0,0.0003862,30]
[381244586,1756108239449,-151.0,0.0003862,30]
[381244588,1756108239459,-151.0,0.0003862,30]
[381244590,1756108239468,-151.0,0.0003862,30]
[381244592,1756108239477,-151.0,0.0003862,30]
[381244594,1756108239487,-155.070347,0.0003862,30]
[381244596,1756108239496,-155.070347,0.0003862,30]
[381244598,1756108239505,-155.070347,0.0003862,30]
[381244600,1756108239514,-155.070347,0.0003862,30]
[381244602,1756108239523,-199.613882,0.0003862,30]
[381244604,1756108239533,-241.590912,0.0003862,30]
[381244606,1756108239543,-241.590912,0.0003862,30]
[381244608,1756108239553,-241.590912,0.0003862,30]
[381244609,1756108239562,-151.0,0.0003862,30]
[381244610,1756108239571,-241.590912,0.0003862,30]
[381244611,1756108239581,-151.0,0.0003862,30]
[381244612,1756108239590,-151.0,0.0003862,30]
[381244613,1756108239600,-286.504169,0.0003862,30]
[381244614,1756108239609,-151.0,0.0003862,30]
[381244615,1756108239619,-151.0,0.0003862,30]
[381244616,1756108239628,-151.0,0.0003862,30]
[381244617,1756108239638,-151.0,0.0003862,30]
[381244618,1756108239648,-154.298147,0.0003862,30]